{"text_format":"1","workbook":"xlsx","n_sheets":2,"sheets":["Sheet1","Holidays"],"not_rendered":{"charts":0,"images":0,"macros":1,"external_links":0,"defined_names":1,"comments":0,"pivot_tables":0},"unopened":[],"bounds":{"document_bytes":16777216,"sheet_cells":100000,"rows_first":2000,"rows_last":500,"rows_between":2000,"halvings":0,"cell_chars":16384,"cell_head_chars":4096},"cells_cut":0,"cells_raw":0,"read":"whole","date_system":"1900"}

{"sheet":"Sheet1","index":0,"n_rows":30,"n_cols":3,"rows_kept":30,"cut":false,"hidden":false,"merged":[]}
["Workdays",null,"Formulas"]
["2021-04-01",null,{"$f":"A2","v":"2021-04-01"}]
[{"$f":"NextWorkday(A2,Holidays!$A:$A)","v":"2021-04-06"},null,{"$f":"_xlfn.FORMULATEXT(A3)","v":"=NextWorkday(A2;Holidays!$A:$A)"}]
[{"$f":"NextWorkday(A3,Holidays!$A:$A)","v":"2021-04-07"},null,"=NextWorkday(A3;Holidays!$A:$A)"]
[{"$f":"NextWorkday(A4,Holidays!$A:$A)","v":"2021-04-08"},null,"=NextWorkday(A4;Holidays!$A:$A)"]
[{"$f":"NextWorkday(A5,Holidays!$A:$A)","v":"2021-04-09"},null,"=NextWorkday(A5;Holidays!$A:$A)"]
[{"$f":"NextWorkday(A6,Holidays!$A:$A)","v":"2021-04-12"},null,"=NextWorkday(A6;Holidays!$A:$A)"]
[{"$f":"NextWorkday(A7,Holidays!$A:$A)","v":"2021-04-13"},null,"=NextWorkday(A7;Holidays!$A:$A)"]
[{"$f":"NextWorkday(A8,Holidays!$A:$A)","v":"2021-04-14"},null,"=NextWorkday(A8;Holidays!$A:$A)"]
[{"$f":"NextWorkday(A9,Holidays!$A:$A)","v":"2021-04-15"},null,"=NextWorkday(A9;Holidays!$A:$A)"]
[{"$f":"NextWorkday(A10,Holidays!$A:$A)","v":"2021-04-16"},null,"=NextWorkday(A10;Holidays!$A:$A)"]
[{"$f":"NextWorkday(A11,Holidays!$A:$A)","v":"2021-04-19"},null,"=NextWorkday(A11;Holidays!$A:$A)"]
[{"$f":"NextWorkday(A12,Holidays!$A:$A)","v":"2021-04-20"},null,"=NextWorkday(A12;Holidays!$A:$A)"]
[{"$f":"NextWorkday(A13,Holidays!$A:$A)","v":"2021-04-21"},null,"=NextWorkday(A13;Holidays!$A:$A)"]
[{"$f":"NextWorkday(A14,Holidays!$A:$A)","v":"2021-04-22"},null,"=NextWorkday(A14;Holidays!$A:$A)"]
[{"$f":"NextWorkday(A15,Holidays!$A:$A)","v":"2021-04-23"},null,"=NextWorkday(A15;Holidays!$A:$A)"]
[{"$f":"NextWorkday(A16,Holidays!$A:$A)","v":"2021-04-26"},null,"=NextWorkday(A16;Holidays!$A:$A)"]
[{"$f":"NextWorkday(A17,Holidays!$A:$A)","v":"2021-04-27"},null,"=NextWorkday(A17;Holidays!$A:$A)"]
[{"$f":"NextWorkday(A18,Holidays!$A:$A)","v":"2021-04-28"},null,"=NextWorkday(A18;Holidays!$A:$A)"]
[{"$f":"NextWorkday(A19,Holidays!$A:$A)","v":"2021-04-29"},null,"=NextWorkday(A19;Holidays!$A:$A)"]
[{"$f":"NextWorkday(A20,Holidays!$A:$A)","v":"2021-04-30"},null,"=NextWorkday(A20;Holidays!$A:$A)"]
[{"$f":"NextWorkday(A21,Holidays!$A:$A)","v":"2021-05-03"},null,"=NextWorkday(A21;Holidays!$A:$A)"]
[{"$f":"NextWorkday(A22,Holidays!$A:$A)","v":"2021-05-04"},null,"=NextWorkday(A22;Holidays!$A:$A)"]
[{"$f":"NextWorkday(A23,Holidays!$A:$A)","v":"2021-05-05"},null,"=NextWorkday(A23;Holidays!$A:$A)"]
[{"$f":"NextWorkday(A24,Holidays!$A:$A)","v":"2021-05-06"},null,"=NextWorkday(A24;Holidays!$A:$A)"]
[{"$f":"NextWorkday(A25,Holidays!$A:$A)","v":"2021-05-07"},null,"=NextWorkday(A25;Holidays!$A:$A)"]
[{"$f":"NextWorkday(A26,Holidays!$A:$A)","v":"2021-05-10"},null,"=NextWorkday(A26;Holidays!$A:$A)"]
[{"$f":"NextWorkday(A27,Holidays!$A:$A)","v":"2021-05-11"},null,"=NextWorkday(A27;Holidays!$A:$A)"]
[{"$f":"NextWorkday(A28,Holidays!$A:$A)","v":"2021-05-12"},null,"=NextWorkday(A28;Holidays!$A:$A)"]
[{"$f":"NextWorkday(A29,Holidays!$A:$A)","v":"2021-05-14"},null,"=NextWorkday(A29;Holidays!$A:$A)"]

{"sheet":"Holidays","index":1,"n_rows":41,"n_cols":7,"rows_kept":41,"cut":false,"hidden":false,"merged":[]}
["Date","Description",null,"Year",null,"Formulas in column A"]
[{"$f":"DATE(ThisYear,1,1)","v":"2021-01-01"},"1st New Year's Day",null,{"$f":"YEAR(NOW())","v":2021},null,{"$f":"_xlfn.FORMULATEXT(A2)","v":"=DATE(ThisYear;1;1)"}]
[{"$f":"A5-3","v":"2021-04-01"},"Maundy Thursday",null,null,null,{"$f":"_xlfn.FORMULATEXT(A3)","v":"=A5-3"}]
[{"$f":"A5-2","v":"2021-04-02"},"Good Friday",null,null,null,"=A5-2"]
[{"$f":"EasterDate(ThisYear)","v":"2021-04-04"},"1st day of Easter",null,null,null,"=EasterDate(ThisYear)"]
[{"$f":"A5+1","v":"2021-04-05"},"2nd day of Easter",null,null,null,"=A5+1"]
[{"$f":"DATE(ThisYear,5,13)","v":"2021-05-13"},"Ascension",null,null,null,"=DATE(ThisYear;5;13)"]
[{"$f":"A5+49","v":"2021-05-23"},"1st day of Pentecost",null,null,null,"=A5+49"]
[{"$f":"A8+1","v":"2021-05-24"},"2. Pentecost",null,null,null,"=A8+1"]
[{"$f":"DATE(ThisYear,12,25)","v":"2021-12-25"},"1st of Christmas",null,null,null,"=DATE(ThisYear;12;25)"]
[{"$f":"DATE(ThisYear,12,26)","v":"2021-12-26"},"2nd Christmas Day",null,null,null,"=DATE(ThisYear;12;26)"]
[{"$f":"DATE(ThisYear,5,17)","v":"2021-05-17"},"17th of May",null,null,null,"=DATE(ThisYear;5;17)"]
[]
[]
[]
[]
[]
[]
[]
[]
[]
[]
[]
[]
[]
[]
[]
[]
[]
[]
[]
[]
[]
[]
[]
[]
[]
[]
[]
[]
[null,null,null,null,null,null,"Jepp"]